fUST/lending_fUST_20250901
["ID","MTS","AMOUNT","RATE_DAILY","PERIOD"]
[382538884,1756660246171,-480.0,0.00017798,2]
[382538885,1756660246180,-480.0,0.00017798,2]
[382538886,1756660246190,-1301.36,0.00017798,2]
[382538887,1756660246199,-526.35,0.00017798,2]
[382538888,1756660246209,-480.0,0.00017798,2]
[382538889,1756660246218,-480.0,0.00017798,2]
[382538890,1756660246228,-480.0,0.00017798,2]
[382538891,1756660246238,-480.0,0.00017798,2]
[382538892,1756660246247,-1209.99,0.00017798,2]
[382538893,1756660246256,-587.53,0.00017798,2]
[382538894,1756660246265,-980.26,0.00017798,2]
[382538895,1756660246275,-480.0,0.00017798,2]
[382538896,1756660246285,-480.0,0.00017798,2]
[382538897,1756660246294,-1285.46,0.00017798,2]
[382538898,1756660246304,-613.9538047,0.00017798,2]
[382538899,1756660246313,-816.43,0.00017798,2]
[382538900,1756660246322,-480.0,0.00017798,2]
[382538901,1756660246332,-480.0,0.00017798,2]
[382538902,1756660246342,-480.0,0.00017798,2]
[382538903,1756660246352,-480.0,0.00017798,2]
[382538904,1756660246362,-864.13,0.00017798,2]
[382538905,1756660246372,-480.0,0.00017798,2]
[382538906,1756660246382,-480.0,0.00017798,2]
[382538907,1756660246391,-480.0,0.00017798,2]
[382538908,1756660246402,-480.0,0.00017798,2]
[382538909,1756660246412,-1067.38,0.00017798,2]
[382538910,1756660246421,-480.0,0.00017798,2]
[382538911,1756660246432,-480.0,0.00017798,2]
[382538912,1756660246442,-480.0,0.00017798,2]
[382538913,1756660246454,-816.36,0.00017798,2]
[382538914,1756660246463,-917.59,0.00017798,2]
[382538915,1756660246473,-1244.04,0.00017798,2]
[382538916,1756660246483,-769.18,0.00017798,2]
[382538917,1756660246492,-480.0,0.00017798,2]
[382538918,1756660246502,-480.0,0.00017798,2]
[382538919,1756660246511,-480.0,0.00017798,2]
[382538920,1756660246521,-608.42,0.00017798,2]
[382538921,1756660246531,-334.42370012,0.00017798,2]
[382538922,1756660246541,-480.0,0.00017798,2]
[382538923,1756660246551,-480.0,0.00017798,2]
[382538924,1756660246562,-1084.36,0.00017798,2]
[382538925,1756660246573,-562.16,0.00017798,2]
[382538926,1756660246583,-480.0,0.00017798,2]
[382538927,1756660246592,-480.0,0.00017798,2]
[382538928,1756660246602,-480.0,0.00017798,2]
[382538929,1756660246612,-480.0,0.00017798,2]
[382538930,1756660246621,-575.89,0.00017798,2]
[382538931,1756660246632,-687.11,0.00017798,2]
[382538932,1756660246643,-480.0,0.00017798,2]
[382538933,1756660246653,-638.64,0.00017798,2]
[382538934,1756660246663,-480.0,0.00017798,2]
[382538935,1756660246672,-423.53794407,0.00017798,2]
[382538936,1756660246681,-480.0,0.00017798,2]
[382538937,1756660246691,-1208.65,0.00017798,2]
[382538938,1756660246700,-480.0,0.00017798,2]
[382538939,1756660246710,-480.0,0.00017798,2]
[382538940,1756660246719,-480.0,0.00017798,2]
[382538941,1756660246730,-506.37,0.00017798,2]
[382538942,1756660246740,-519.98,0.00017798,2]
[382538943,1756660246750,-714.29,0.00017798,2]
[382538944,1756660246760,-480.0,0.00017798,2]
[382538945,1756660246771,-566.07,0.00017798,2]
[382538946,1756660246781,-591.06,0.00017798,2]
[382538947,1756660246791,-480.0,0.00017798,2]
[382538948,1756660246800,-480.0,0.00017798,2]
[382538949,1756660246809,-581.93,0.00017798,2]
[382538950,1756660246819,-1550.6,0.00017798,2]
[382538951,1756660246828,-404.65764314,0.00017798,2]
[382538952,1756660246838,-480.0,0.00017798,2]
[382538953,1756660246849,-480.0,0.00017798,2]
[382538954,1756660246859,-480.0,0.00017798,2]
[382538955,1756660246868,-480.0,0.00017798,2]
[382538956,1756660246878,-480.0,0.00017798,2]
[382538957,1756660246887,-480.0,0.00017798,2]
[382538958,1756660246897,-480.0,0.00017798,2]
[382538959,1756660246907,-530.87,0.00017798,2]
[382538960,1756660246917,-480.0,0.00017798,2]
[382538961,1756660246927,-480.0,0.00017798,2]
[382538962,1756660246937,-783.11,0.00017798,2]
[382538963,1756660246947,-480.0,0.00017798,2]
[382538964,1756660246957,-480.0,0.00017798,2]
[382538965,1756660246966,-524.41,0.00017798,2]
[382538966,1756660246976,-480.0,0.00017798,2]
[382538967,1756660246986,-480.0,0.00017798,2]
[382538968,1756660246996,-567.31,0.00017798,2]
[382538969,1756660247005,-483.96,0.00017798,2]
[382538970,1756660247014,-504.08,0.00017798,2]
[382538971,1756660247023,-850.27,0.00017798,2]
[382538972,1756660247033,-480.0,0.00017798,2]
[382538973,1756660247043,-763.15,0.00017798,2]
[382538974,1756660247053,-327.95776458,0.00017798,2]
[382538975,1756660247064,-480.0,0.00017798,2]
[382538976,1756660247073,-836.89,0.00017798,2]
[382538977,1756660247084,-707.84,0.00017798,2]
[382538978,1756660247094,-480.0,0.00017798,2]
[382538979,1756660247103,-1038.66,0.00017798,2]
[382538980,1756660247113,-802.97,0.00017798,2]
[382538981,1756660247123,-480.0,0.00017798,2]
[382538982,1756660247133,-998.01,0.00017798,2]
[382538983,1756660247143,-480.0,0.00017798,2]
[382538984,1756660247153,-1032.21,0.00017798,2]
[382538985,1756660247164,-480.0,0.00017798,2]
[382538986,1756660247174,-480.0,0.00017798,2]
[382538987,1756660247184,-835.98,0.00017798,2]
[382538988,1756660247194,-480.0,0.00017798,2]
[382538989,1756660247204,-1065.95,0.00017798,2]
[382538990,1756660247214,-480.0,0.00017798,2]
[382538991,1756660247224,-1048.2,0.00017798,2]
[382538992,1756660247234,-511.02,0.00017798,2]
[382538993,1756660247244,-480.0,0.00017798,2]
[382538994,1756660247254,-480.0,0.00017798,2]
[382538995,1756660247264,-480.0,0.00017798,2]
[382538996,1756660247274,-480.0,0.00017798,2]
[382538997,1756660247283,-480.0,0.00017798,2]
[382538998,1756660247294,-480.0,0.00017798,2]
[382538999,1756660247304,-480.0,0.00017798,2]
[382539000,1756660247314,-544.28,0.00017798,2]
[382539001,1756660247323,-567.11,0.00017798,2]
[382539002,1756660247333,-1174.02,0.00017798,2]
[382539003,1756660247343,-480.0,0.00017798,2]
[382539004,1756660247353,-1021.01,0.00017798,2]
[382539005,1756660247363,-480.0,0.00017798,2]
[382539006,1756660247373,-946.11,0.00017798,2]
[382539007,1756660247384,-526.64,0.00017798,2]
[382539008,1756660247394,-1162.16,0.00017798,2]
[382539009,1756660247409,-480.0,0.00017798,2]
[382539010,1756660247419,-1221.67,0.00017798,2]
[382539011,1756660247429,-480.0,0.00017798,2]
[382539012,1756660247439,-528.06,0.00017798,2]
[382539013,1756660247452,-480.0,0.00017798,2]
[382539014,1756660247462,-626.71,0.00017798,2]
[382539015,1756660247474,-578.50855936,0.00017798,2]
[382539016,1756660247484,-1292.28,0.00017798,2]
[382539017,1756660247494,-972.4,0.00017798,2]
[382539018,1756660247504,-1187.58,0.00017798,2]
[382539019,1756660247513,-480.0,0.00017798,2]
[382539020,1756660247523,-480.0,0.00017798,2]
[382539021,1756660247533,-480.0,0.00017798,2]
[382539022,1756660247543,-480.0,0.00017798,2]
[382539023,1756660247553,-745.14,0.00017798,2]
[382539024,1756660247563,-480.0,0.00017798,2]
[382539025,1756660247573,-480.0,0.00017798,2]
[382539026,1756660247583,-598.63,0.00017798,2]
[382539027,1756660247594,-480.0,0.00017798,2]
[382539028,1756660247603,-547.44,0.00017798,2]
[382539029,1756660247614,-643.11,0.00017798,2]
[382539030,1756660247624,-797.13,0.00017798,2]
[382539031,1756660247634,-480.0,0.00017798,2]
[382539032,1756660247644,-883.48,0.00017798,2]
[382539033,1756660247653,-735.89,0.00017798,2]
[382539034,1756660247663,-1557.13,0.00017798,2]
[382539035,1756660247672,-480.0,0.00017798,2]
[382539036,1756660247682,-480.0,0.00017798,2]
[382539037,1756660247692,-151.0,0.00017798,2]
[382539038,1756660247701,-151.0,0.00017798,2]
[382539039,1756660247711,-176.48709,0.00017798,2]
[382539040,1756660247721,-169.664587,0.00017798,2]
[382539041,1756660247731,-151.0,0.00017798,2]
[382539042,1756660247740,-480.0,0.00017798,2]
[382539043,1756660247750,-3517.95,0.00017798,2]
[382539044,1756660247762,-593.15,0.00017798,2]
[382539045,1756660247771,-151.0,0.00017798,2]
[382539046,1756660247782,-480.0,0.00017798,2]
[382539047,1756660247792,-151.0,0.00017798,2]
[382539048,1756660247802,-151.0,0.00017798,2]
[382539049,1756660247812,-480.0,0.00017798,2]
[382539050,1756660247823,-596.0,0.00017798,2]
[382539051,1756660247834,-480.0,0.00017798,2]
[382539052,1756660247844,-480.0,0.00017798,2]
[382539053,1756660247855,-480.0,0.00017798,2]
[382539054,1756660247865,-655.56,0.00017798,2]
[382539055,1756660247875,-151.0,0.00017798,2]
[382539056,1756660247885,-151.0,0.00017798,2]
[382539057,1756660247895,-1302.86,0.00017798,2]
[382539058,1756660247904,-602.86568468,0.00017798,2]
[382539059,1756660247915,-480.0,0.00017798,2]
[382539060,1756660247925,-480.0,0.00017798,2]
[382539061,1756660247935,-522.69,0.00017798,2]
[382539062,1756660247944,-480.0,0.00017798,2]
[382539063,1756660247954,-480.0,0.00017798,2]
[382539064,1756660247964,-480.0,0.00017798,2]
[382539065,1756660247974,-190.444749,0.00017798,2]
[382539066,1756660247984,-190.444749,0.00017798,2]
[382539067,1756660247993,-480.0,0.00017798,2]
[382539068,1756660248003,-561.27,0.00017798,2]
[382539069,1756660248013,-190.444749,0.00017798,2]
[382539070,1756660248023,-480.0,0.00017798,2]
[382539071,1756660248033,-190.444749,0.00017798,2]
[382539072,1756660248044,-403.69838574,0.00017798,2]
[382539073,1756660248054,-1004.14,0.00017798,2]
[382539074,1756660248064,-2104.27,0.00017798,2]
[382539075,1756660248074,-480.0,0.00017798,2]
[382539076,1756660248084,-1104.03,0.00017798,2]
[382539077,1756660248094,-480.0,0.00017798,2]
[382539078,1756660248105,-5958.29,0.00017798,2]
[382539079,1756660248115,-480.0,0.00017798,2]
[382539080,1756660248127,-151.0,0.00017798,2]
[382539081,1756660248137,-895.23,0.00017798,2]
[382539082,1756660248147,-151.0,0.00017798,2]
[382539083,1756660248157,-480.0,0.00017798,2]
[382539084,1756660248165,-426.82320677,0.00017798,2]
[382539085,1756660248175,-480.0,0.00017798,2]
[382539086,1756660248184,-480.0,0.00017798,2]
[382539087,1756660248192,-151.0,0.00017798,2]
[382539088,1756660248202,-151.0,0.00017798,2]
[382539089,1756660248213,-287.782845,0.00017798,2]
[382539090,1756660248223,-151.0,0.00017798,2]
[382539091,1756660248233,-151.0,0.00017798,2]
[382539092,1756660248243,-714.68,0.00017798,2]
[382539093,1756660248253,-480.0,0.00017798,2]
[382539094,1756660248263,-480.0,0.00017798,2]
[382539095,1756660248274,-932.89,0.00017798,2]
[382539096,1756660248284,-480.0,0.00017798,2]
[382539097,1756660248294,-480.0,0.00017798,2]
[382539098,1756660248304,-1011.01,0.00017798,2]
[382539099,1756660248314,-480.0,0.00017798,2]
[382539100,1756660248323,-795.43,0.00017798,2]
[382539101,1756660248334,-480.0,0.00017798,2]
[382539102,1756660248343,-3596.03,0.00017798,2]
[382539103,1756660248354,-480.0,0.00017798,2]
[382539104,1756660248364,-480.0,0.00017798,2]
[382539105,1756660248374,-151.0,0.00017798,2]
[382539106,1756660248384,-692.49,0.00017798,2]
[382539107,1756660248394,-1048.57,0.00017798,2]
[382539108,1756660248404,-727.17,0.00017798,2]
[382539109,1756660248414,-610.9,0.00017798,2]
[382539110,1756660248424,-550.69,0.00017798,2]
[382539111,1756660248434,-480.0,0.00017798,2]
[382539112,1756660248445,-1226.76,0.00017798,2]
[382539113,1756660248455,-480.0,0.00017798,2]
[382539114,1756660248465,-1792.03,0.00017798,2]
[382539115,1756660248475,-151.0,0.00017798,2]
[382539116,1756660248485,-480.0,0.00017798,2]
[382539117,1756660248495,-480.0,0.00017798,2]
[382539118,1756660248506,-676.86,0.00017798,2]
[382539119,1756660248516,-1042.83,0.00017798,2]
[382539120,1756660248526,-1636.62,0.00017798,2]
[382539121,1756660248536,-480.0,0.00017798,2]
[382539122,1756660248546,-480.0,0.00017798,2]
[382539123,1756660248557,-1141.17,0.00017798,2]
[382539124,1756660248567,-480.0,0.00017798,2]
[382539125,1756660248577,-568.76,0.00017798,2]
[382539126,1756660248587,-271.31029319,0.00017798,2]
[382539127,1756660248598,-480.0,0.00017798,2]
[382539128,1756660248608,-480.0,0.00017798,2]
[382539129,1756660248618,-480.0,0.00017798,2]
[382539130,1756660248628,-480.0,0.00017798,2]
[382539131,1756660248639,-480.0,0.00017798,2]
[382539132,1756660248649,-480.0,0.00017798,2]
[382539133,1756660248659,-968.96,0.00017798,2]
[382539134,1756660248669,-680.93,0.00017798,2]
[382539135,1756660248679,-480.0,0.00017798,2]
[382539136,1756660248691,-564.06,0.00017798,2]
[382539137,1756660248701,-480.0,0.00017798,2]
[382539138,1756660248712,-570.22,0.00017798,2]
[382539139,1756660248722,-480.0,0.00017798,2]
[382539140,1756660248732,-859.09,0.00017798,2]
[382539141,1756660248743,-675.56,0.00017798,2]
[382539142,1756660248754,-480.0,0.00017798,2]
[382539143,1756660248764,-856.03,0.00017798,2]
[382539144,1756660248774,-537.12,0.00017798,2]
[382539145,1756660248784,-151.0,0.00017798,2]
[382539146,1756660248794,-480.0,0.00017798,2]
[382539147,1756660248804,-480.0,0.00017798,2]
[382539148,1756660248814,-505.26,0.00017798,2]
[382539149,1756660248823,-480.0,0.00017798,2]
[382539150,1756660248833,-480.0,0.00017798,2]
[382539151,1756660248843,-480.0,0.00017798,2]
[382539152,1756660248857,-629.0,0.00017798,2]
[382539153,1756660248867,-480.0,0.00017798,2]
[382539154,1756660248877,-154.702727,0.00017798,2]
[382539155,1756660248887,-480.0,0.00017798,2]
[382539156,1756660248897,-2264.55,0.00017798,2]
[382539157,1756660248907,-480.0,0.00017798,2]
[382539158,1756660248916,-1322.48,0.00017798,2]
[382539159,1756660248926,-480.0,0.00017798,2]
[382539160,1756660248937,-480.0,0.00017798,2]
[382539161,1756660248946,-480.0,0.00017798,2]
[382539162,1756660248959,-480.0,0.00017798,2]
[382539163,1756660248970,-480.0,0.00017798,2]
[382539164,1756660248980,-480.0,0.00017798,2]
[382539165,1756660248990,-1271.51,0.00017798,2]
[382539166,1756660249001,-4086.95,0.00017798,2]
[382539167,1756660249011,-540.25,0.00017798,2]
[382539168,1756660249022,-614.18,0.00017798,2]
[382539169,1756660249032,-813.66,0.00017798,2]
[382539170,1756660249042,-531.69,0.00017798,2]
[382539171,1756660249051,-535.44103704,0.00017798,2]
[382539172,1756660249062,-480.0,0.00017798,2]
[382539173,1756660249072,-480.0,0.00017798,2]
[382539174,1756660249082,-151.0,0.00017798,2]
[382539175,1756660249092,-480.0,0.00017798,2]
[382539176,1756660249102,-480.0,0.00017798,2]
[382539177,1756660249112,-480.0,0.00017798,2]
[382539178,1756660249122,-480.0,0.00017798,2]
[382539179,1756660249131,-912.13,0.00017798,2]
[382539180,1756660249142,-480.0,0.00017798,2]
[382539181,1756660249160,-480.0,0.00017798,2]
[382539182,1756660249171,-480.0,0.00017798,2]
[382539183,1756660249180,-480.0,0.00017798,2]
[382539184,1756660249191,-4799.67,0.00017798,2]
[382539185,1756660249201,-480.0,0.00017798,2]
[382539186,1756660249211,-480.0,0.00017798,2]
[382539187,1756660249223,-480.0,0.00017798,2]
[382539188,1756660249233,-480.0,0.00017798,2]
[382539189,1756660249243,-660.71,0.00017798,2]
[382539190,1756660249253,-1219.07,0.00017798,2]
[382539191,1756660249263,-480.0,0.00017798,2]
[382539192,1756660249273,-934.9,0.00017798,2]
[382539193,1756660249283,-151.0,0.00017798,2]
[382539194,1756660249455,-480.0,0.00017798,2]
[382539195,1756660249467,-480.0,0.00017798,2]
[382539196,1756660249477,-918.48,0.00017798,2]
[382539197,1756660249487,-151.0,0.00017798,2]
[382539198,1756660249497,-1820.04,0.00017798,2]
[382539199,1756660249507,-480.0,0.00017798,2]
[382539200,1756660249516,-480.0,0.00017798,2]
[382539201,1756660249526,-279.423575,0.00017798,2]
[382539202,1756660249536,-875.46,0.00017798,2]
[382539203,1756660249545,-480.0,0.00017798,2]
[382539204,1756660249555,-2281.38,0.00017798,2]
[382539205,1756660249564,-151.0,0.00017798,2]
[382539206,1756660249575,-480.0,0.00017798,2]
[382539207,1756660249584,-232.24603415,0.00017798,2]
[382539208,1756660249594,-480.0,0.00017798,2]
[382539209,1756660249604,-921.32,0.00017798,2]
[382539210,1756660249613,-480.0,0.00017798,2]
[382539211,1756660249623,-642.61,0.00017798,2]
[382539212,1756660249632,-1137.55,0.00017798,2]
[382539213,1756660249642,-773.56,0.00017798,2]
[382539214,1756660249652,-480.0,0.00017798,2]
[382539215,1756660249662,-151.0,0.00017798,2]
[382539216,1756660249671,-151.0,0.00017798,2]
[382539217,1756660249681,-480.0,0.00017798,2]
[382539218,1756660249691,-282.73421444,0.00017798,2]
[382539219,1756660249700,-1695.17,0.00017798,2]
[382539220,1756660249709,-942.36,0.00017798,2]
[382539221,1756660249719,-593.73,0.00017798,2]
[382539222,1756660249728,-480.0,0.00017798,2]
[382539223,1756660249738,-480.0,0.00017798,2]
[382539224,1756660249747,-480.0,0.00017798,2]
[382539225,1756660249757,-530.23,0.00017798,2]
[382539226,1756660249766,-258.96907,0.00017798,2]
[382539227,1756660249775,-480.0,0.00017798,2]
[382539228,1756660249785,-483.93,0.00017798,2]
[382539229,1756660249794,-270.445229,0.00017798,2]
[382539230,1756660249803,-151.0,0.00017798,2]
[382539231,1756660249812,-151.0,0.00017798,2]
[382539232,1756660249822,-480.0,0.00017798,2]
[382539233,1756660249831,-259.71120939,0.00017798,2]
[382539234,1756660249841,-480.0,0.00017798,2]
[382539235,1756660249850,-865.95,0.00017798,2]
[382539236,1756660249860,-151.0,0.00017798,2]
[382539237,1756660249869,-1020.63,0.00017798,2]
[382539238,1756660249878,-813.18,0.00017798,2]
[382539239,1756660249888,-480.0,0.00017798,2]
[382539240,1756660249898,-508.81,0.00017798,2]
[382539241,1756660249907,-480.0,0.00017798,2]
[382539242,1756660249916,-151.0,0.00017798,2]
[382539243,1756660249926,-151.0,0.00017798,2]
[382539244,1756660249935,-968.45,0.00017798,2]
[382539245,1756660249944,-480.0,0.00017798,2]
[382539246,1756660249954,-1091.33,0.00017798,2]
[382539247,1756660249965,-480.0,0.00017798,2]
[382539248,1756660249975,-783.77,0.00017798,2]
[382539249,1756660249984,-151.0,0.00017798,2]
[382539250,1756660249994,-480.0,0.00017798,2]
[382539251,1756660250003,-151.0,0.00017798,2]
[382539252,1756660250013,-151.0,0.00017798,2]
[382539253,1756660250023,-151.0,0.00017798,2]
[382539254,1756660250033,-1124.92,0.00017798,2]
[382539255,1756660250042,-480.0,0.00017798,2]
[382539256,1756660250052,-480.0,0.00017798,2]
[382539257,1756660250061,-795.69,0.00017798,2]
[382539258,1756660250071,-677.22,0.00017798,2]
[382539259,1756660250081,-151.0,0.00017798,2]
[382539260,1756660250090,-151.0,0.00017798,2]
[382539261,1756660250100,-480.0,0.00017798,2]
[382539262,1756660250110,-151.0,0.00017798,2]
[382539263,1756660250119,-500.0,0.00017799,2]
[382539264,1756660250129,-480.0,0.00017799,2]
[382539265,1756660250138,-480.0,0.00017799,2]
[382539266,1756660250148,-272.52744143,0.00017799,2]
[382539267,1756660250159,-480.0,0.00017799,2]
[382539268,1756660250168,-480.0,0.00017799,2]
[382539269,1756660250178,-480.0,0.00017799,2]
[382539270,1756660250188,-846.05,0.00017799,2]
[382539271,1756660250197,-480.0,0.00017799,2]
[382539272,1756660250207,-509.08,0.00017799,2]
[382539273,1756660250217,-480.0,0.00017799,2]
[382539274,1756660250227,-480.0,0.00017799,2]
[382539275,1756660250237,-635.77,0.00017799,2]
[382539276,1756660250247,-480.0,0.00017799,2]
[382539277,1756660250257,-480.0,0.00017799,2]
[382539278,1756660250267,-480.0,0.00017799,2]
[382539279,1756660250276,-480.0,0.00017799,2]
[382539280,1756660250287,-594.65,0.00017799,2]
[382539281,1756660250297,-484.56,0.00017799,2]
[382539282,1756660250306,-1261.07,0.00017799,2]
[382539283,1756660250316,-480.0,0.00017799,2]
[382539284,1756660250326,-480.0,0.00017799,2]
[382539285,1756660250336,-706.62,0.00017799,2]
[382539286,1756660250346,-480.0,0.00017799,2]
[382539287,1756660250356,-480.0,0.00017799,2]
[382539288,1756660250366,-480.0,0.00017799,2]
[382539289,1756660250376,-480.0,0.00017799,2]
[382539290,1756660250386,-565.49,0.00017799,2]
[382539291,1756660250396,-480.0,0.00017799,2]
[382539292,1756660250406,-480.0,0.00017799,2]
[382539293,1756660250416,-644.34,0.00017799,2]
[382539294,1756660250426,-542.54,0.00017799,2]
[382539295,1756660250435,-151.0,0.00017799,2]
[382539296,1756660250445,-480.0,0.00017799,2]
[382539297,1756660250455,-151.0,0.00017799,2]
[382539298,1756660250465,-151.0,0.00017799,2]
[382539299,1756660250475,-485.61,0.00017799,2]
[382539300,1756660250485,-151.0,0.00017799,2]
[382539301,1756660250495,-151.0,0.000178,2]
[382539302,1756660250506,-151.0,0.000178,2]
[382539303,1756660250516,-6002.93332517,0.00017853,2]
[382539304,1756660250525,-1031.18010209,0.00017854,2]
[382539305,1756660250536,-151.0,0.000179,2]
[382539306,1756660250546,-151.0,0.000179,2]
[382539307,1756660250555,-151.0,0.000179,2]
[382539308,1756660250565,-151.0,0.000179,2]
[382539309,1756660250575,-150.251517,0.00017906,10]
[382539310,1756660250585,-154.58277628,0.00017918,2]
[382539311,1756660250596,-638.0,0.00017926,2]
[382539312,1756660250606,-151.0,0.00018,2]
[382539313,1756660250616,-151.0,0.00018,2]
[382539314,1756660250626,-2988.10233505,0.00018,2]
[382539315,1756660250635,-151.0,0.00018028,2]
[382539316,1756660250645,-151.0,0.00018028,2]
[382539317,1756660250655,-151.0,0.00018028,2]
[382539318,1756660250665,-151.0,0.00018028,2]
[382539319,1756660250674,-151.0,0.00018028,2]
[382539320,1756660250684,-638.0,0.00018057,2]
[382539321,1756660250695,-975.0,0.0001806,2]
[382539322,1756660250704,-2152.0,0.0001806,2]
[382539323,1756660250714,-632.0,0.0001806,2]
[382539324,1756660250724,-480.0,0.00018072,2]
[382539325,1756660250734,-480.0,0.00018072,2]
[382539326,1756660250743,-1068.68,0.00018072,2]
[382539327,1756660250753,-480.0,0.00018072,2]
[382539328,1756660250763,-480.0,0.00018072,2]
[382539329,1756660250773,-480.0,0.00018072,2]
[382539330,1756660250783,-480.0,0.00018072,2]
[382539331,1756660250793,-807.76,0.00018072,2]
[382539332,1756660250803,-933.78,0.00018072,2]
[382539333,1756660250812,-290.01900254,0.00018072,2]
[382539334,1756660250822,-480.0,0.00018072,2]
[382539335,1756660250832,-480.0,0.00018072,2]
[382539336,1756660250841,-480.0,0.00018072,2]
[382539337,1756660250851,-1179.57,0.00018072,2]
[382539338,1756660250861,-526.22,0.00018072,2]
[382539339,1756660250871,-480.0,0.00018072,2]
[382539340,1756660250880,-600.74,0.00018072,2]
[382539341,1756660250890,-1120.85,0.00018072,2]
[382539342,1756660250899,-480.0,0.00018072,2]
[382539343,1756660250917,-480.0,0.00018072,2]
[382539344,1756660250927,-480.0,0.00018072,2]
[382539345,1756660250936,-480.0,0.00018072,2]
[382539346,1756660250945,-512.05,0.00018072,2]
[382539347,1756660250955,-480.0,0.00018072,2]
[382539348,1756660250965,-480.0,0.00018072,2]
[382539349,1756660250974,-531.63,0.00018072,2]
[382539350,1756660250995,-625.70560215,0.00018072,2]
[382539351,1756660251006,-480.0,0.00018072,2]
[382539352,1756660251017,-1301.36,0.00018072,2]
[382539353,1756660251027,-526.35,0.00018072,2]
[382539354,1756660251037,-480.0,0.00018072,2]
[382539355,1756660251047,-480.0,0.00018072,2]
[382539356,1756660251058,-480.0,0.00018072,2]
[382539357,1756660251068,-480.0,0.00018072,2]
[382539358,1756660251077,-1209.99,0.00018072,2]
[382539359,1756660251088,-587.53,0.00018072,2]
[382539360,1756660251098,-980.26,0.00018072,2]
[382539361,1756660251108,-480.0,0.00018072,2]
[382539362,1756660251119,-480.0,0.00018072,2]
[382539363,1756660251129,-1285.46,0.00018072,2]
[382539364,1756660251140,-151.55384,0.00018072,2]
[382539365,1756660251150,-480.0,0.00018072,2]
[382539366,1756660251161,-816.43,0.00018072,2]
[382539367,1756660251171,-480.0,0.00018072,2]
[382539368,1756660251183,-480.0,0.00018072,2]
[382539369,1756660251193,-480.0,0.00018072,2]
[382539370,1756660251203,-151.0,0.00018072,2]
[382539371,1756660251215,-864.13,0.00018072,2]
[382539372,1756660251224,-480.0,0.00018072,2]
[382539373,1756660251235,-480.0,0.00018072,2]
[382539374,1756660251245,-480.0,0.00018072,2]
[382539375,1756660251256,-480.0,0.00018072,2]
[382539376,1756660251266,-184.400329,0.00018072,2]
[382539377,1756660251276,-480.0,0.00018072,2]
[382539378,1756660251285,-1067.38,0.00018072,2]
[382539379,1756660251295,-151.0,0.00018072,2]
[382539380,1756660251305,-151.0,0.00018072,2]
[382539381,1756660251315,-480.0,0.00018072,2]
[382539382,1756660251326,-480.0,0.00018072,2]
[382539383,1756660251336,-816.36,0.00018072,2]